Cogmind - Beta 12 @@@ ROGUE MODE // 2023.04.02 @ 17:00:58 Player: ZLD1 Result: Destroyed by S-10 Pest with Light Assault Rifle Performance ------------- Evolutions (0) 0 Regions Visited (4) 800 Robots Destroyed (10) 50 Value Destroyed (225) 225 Prototype IDs (25) 500 Alien Tech Used (0) 0 Bonus (300) 300 TOTAL SCORE: 1875 Bonus ------- Aligned with FarCom 300 Cogmind --------- Core Integrity 0/250 Matter 208/300 Energy 169/170 System Corruption 1% Temperature Cool (0) Movement Walking (190) Ox1 Location -9/Mines Parts ------- > --- POWER (1) -------- Makeshift Power Source > --- PROPULSION (2) --- Aluminum Leg > --- UTILITY (2) ------ Medium Storage Unit Seismic Detector > --- WEAPON (2) ------- Light Assault Rifle > --- INVENTORY (10) --- Light Ion Engine Light Nuclear Core Improved Heat Sink Medium Storage Unit Sensor Array Improved Terrain Scanner Light Armor Plating Light Assault Rifle AWS/Gauss Peak State ------------ > --- POWER ------------ Makeshift Power Source > --- PROPULSION ------- Aluminum Leg Aluminum Leg > --- UTILITY ---------- Medium Storage Unit Seismic Detector > --- WEAPON ----------- Assault Rifle Light Assault Rifle > --- INVENTORY -------- Light Ion Engine Light Nuclear Core Improved Heat Sink Medium Storage Unit Sensor Array Improved Terrain Scanner Light Armor Plating Light Assault Rifle AWS/Gauss [Rating: 13] Favorites ----------- Power Ion Engine Engine Ion Engine Power Core Light Nuclear Core Propulsion Aluminum Leg Leg Aluminum Leg Utility Seismic Detector Device Seismic Detector Storage Medium Storage Unit Weapon Light Assault Rifle Ballistic Gun Light Assault Rifle Build | -11 -10 -10 -10 -9 ------- Run | Jun Mat Min Exi Min Slots Evolved . | . . . . . Power . | . . . . . Propulsion . | . . . . . Utility . | . . . . . Weapon . | . . . . . Parts Attached 10 | 6 2 . 1 1 Power 3 | 1 . . 1 1 Engine 2 | 1 . . . 1 Core 1 | . . . 1 . Reactor . | . . . . . Propulsion 2 | 2 . . . . Treads . | . . . . . Leg 2 | 2 . . . . Wheel . | . . . . . Hover . | . . . . . Flight . | . . . . . Utility 3 | 1 2 . . . Device 1 | . 1 . . . Storage 2 | 1 1 . . . Processor . | . . . . . Hackware . | . . . . . Protection . | . . . . . Artifact . | . . . . . Weapon 2 | 2 . . . . Energy Gun . | . . . . . Energy Cannon . | . . . . . Ballistic Gun 2 | 2 . . . . Ballistic Cannon . | . . . . . Launcher . | . . . . . Special Weapon . | . . . . . Impact Weapon . | . . . . . Slashing Weapon . | . . . . . Piercing Weapon . | . . . . . Special Melee Weapon . | . . . . . Unidentified Prototypes . | . . . . . Parts Lost 2 | . . . . 2 Power . | . . . . . Propulsion 1 | . . . . 1 Utility . | . . . . . Weapon 1 | . . . . 1 Highest Loss Streak 1 | . . . . 1 To Critical Strikes . | . . . . . Average Slot Usage (%) 97 | . 97 100 100 95 Engine 10 | . 14 14 6 9 Core 3 | . . . 7 4 Leg 27 | . 28 28 28 25 Device 13 | . 11 14 14 14 Storage 14 | . 14 14 14 14 Ballistic Gun 27 | . 28 28 28 26 Naked Turns . | . . . . . Heaviest Build 19 | 13 19 19 19 19 Greatest Support 20 | 20 20 20 20 20 Greatest Overweight (x) 1 | 1 . . . 1 Average Overweight (x) . | . . . . . Largest Inventory Capacity 10 | 8 10 10 10 10 Average Capacity 9 | 7 8 10 10 10 Most Carried 10 | 5 9 9 10 10 Average Carried 8 | 2 6 9 9 9 Final Capacity 10 | 8 10 10 10 10 Final Carried 10 | 4 9 9 10 10 Class Distribution -------------------- 100% | Mutant Dominant Class ---------------- Mutant | -10/Materials Mutant | -10/Mines Mutant | -10/Exiles Mutant | -9/Mines Resources | -11 -10 -10 -10 -9 ----------- Run | Jun Mat Min Exi Min Matter Collected 378 | 226 12 37 . 103 Remotely . | . . . . . Salvage Created 268 | 13 98 . . 157 Parts 22 | 5 4 . . 13 Haulers Intercepted . | . . . . . Recyclers Shooed . | . . . . . Parts Field Recycled . | . . . . . Retrieved Matter . | . . . . . Parts Self-Destructed . | . . . . . Prevented . | . . . . . Kills | -11 -10 -10 -10 -9 ------- Run | Jun Mat Min Exi Min Combat Hostiles Destroyed 9 | . 3 . . 6 Guns 9 | . 3 . . 6 Classes Destroyed 5 | 1 2 . . 2 Builder 1 | . . . . 1 Tunneler 1 | 1 . . . . Swarmer 3 | . 1 . . 2 Grunt 5 | . 2 . . 3 Assembled 1 | . . . . 1 Best Kill Streak 3 | 1 2 . . 3 Combat Bots Only 3 | . 2 . . 3 Max Kills in Single Turn 1 | 1 1 . . 1 Gunslinging . | . . . . . Exploded . | . . . . . Melee . | . . . . . Uniques/NPCs Destroyed . | . . . . . Combat | -11 -10 -10 -10 -9 -------- Run | Jun Mat Min Exi Min Damage Taken 729 | . 255 . . 474 Core 255 | . 42 . . 213 Absorbed by Shields . | . . . . . Core Remaining (%) 100 | 100 . . . . Volleys Fired 59 | 4 11 . . 44 Largest 2 | 2 2 . . 2 Hottest 40 | 40 40 . . 40 Shots Fired 104 | 8 22 . . 74 Gun 104 | 8 22 . . 74 Cannon . | . . . . . Launcher . | . . . . . Special . | . . . . . Kinetic 104 | 8 22 . . 74 Thermal . | . . . . . Explosive . | . . . . . Electromagnetic . | . . . . . Robot Hit Streak 14 | 4 6 . . 14 Robot Miss Streak 4 | 2 2 . . 4 Penetration Max . | . . . . . Secondary Targets 1 | . . . . 1 Max Gunslinging Chain 1 | . . . . 1 Shots Hit Robots 52 | 5 14 . . 33 Core Hits 20 | 2 6 . . 12 Critical Kills . | . . . . . Critical Parts Destroyed . | . . . . . Critical Strikes . | . . . . . Melee Attacks . | . . . . . Impact . | . . . . . Slashing . | . . . . . Piercing . | . . . . . Sneak Attacks . | . . . . . Combat Hostiles . | . . . . . Follow-up Attacks . | . . . . . Damage Inflicted 557 | 49 159 1 . 348 Guns 545 | 49 151 . . 345 Cannons . | . . . . . Explosions . | . . . . . Melee . | . . . . . Ramming 12 | . 8 1 . 3 Kinetic 545 | 49 151 . . 345 Thermal . | . . . . . Explosive . | . . . . . Electromagnetic . | . . . . . Impact . | . . . . . Slashing . | . . . . . Piercing . | . . . . . Highest Corruption 1 | . . . . 1 Average Corruption 1 | . . . . 1 Corruption Purged . | . . . . . Corruption Blocked . | . . . . . Overload Shots . | . . . . . Overflow Damage . | . . . . . Projectiles . | . . . . . Explosions . | . . . . . Melee . | . . . . . Knockbacks . | . . . . . Impact . | . . . . . Kinetic . | . . . . . Secondary . | . . . . . Self-Inflicted Damage . | . . . . . Shots . | . . . . . Rammed . | . . . . . Targets Rammed 4 | . 2 1 . 1 Kicked 4 | . 2 1 . 1 Crushed . | . . . . . Highest Temperature 68 | . 24 . . 68 Average Temperature 19 | . 10 . . 21 Received Heat Transfer 225 | . 123 . . 102 Siege Activations . | . . . . . Robots Corrupted . | . . . . . Combat Hostiles . | . . . . . Parts Fried . | . . . . . Impact Corruptions . | . . . . . Robots Melted . | . . . . . Combat Hostiles . | . . . . . Parts Melted . | . . . . . Heat Transferred . | . . . . . Parts Sabotaged . | . . . . . Parts Stolen . | . . . . . Parts Stripped . | . . . . . Power Chain Reactions . | . . . . . Missiles Intercepted . | . . . . . Alert | -11 -10 -10 -10 -9 ------- Run | Jun Mat Min Exi Min Peak Influence 107 | 5 107 41 . 100 Initial 41 | . 3 41 . . Average 46 | . 67 41 . 39 Maximum Alert Level . | . . . . . Low Security (%) 100 | 100 100 100 . 100 Level 1 . | . . . . . Level 2 . | . . . . . Level 3 . | . . . . . Level 4 . | . . . . . Level 5 . | . . . . . High Security . | . . . . . Max Security . | . . . . . Squads Dispatched . | . . . . . Investigation . | . . . . . Extermination . | . . . . . Reinforcement . | . . . . . Assault . | . . . . . Garrison . | . . . . . Intercept . | . . . . . Searches Triggered . | . . . . . Construction Impeded . | . . . . . Haulers Reinforced . | . . . . . Active Scanning Responses . | . . . . . Cargo Convoy Interrupts . | . . . . . Stealth | -11 -10 -10 -10 -9 --------- Run | Jun Mat Min Exi Min Distress Signals . | . . . . . Communications Jammed . | . . . . . Distress Signals . | . . . . . Times Spotted 15 | . 6 . . 9 Peak Tracking Total 4 | . 3 . . 4 Tactical Retreats 3 | . 1 . . 2 Traps | -11 -10 -10 -10 -9 ------- Run | Jun Mat Min Exi Min Traps Triggered . | . . . . . Indirectly . | . . . . . Trap Hack Attempts . | . . . . . Triggered . | . . . . . Disarmed . | . . . . . Reprogrammed . | . . . . . Reused . | . . . . . Traps Extracted . | . . . . . Installed . | . . . . . Triggered . | . . . . . Machines | -11 -10 -10 -10 -9 ---------- Run | Jun Mat Min Exi Min Machines Disabled . | . . . . . Max in Single Turn . | . . . . . Machines Repaired . | . . . . . Machines Sabotaged . | . . . . . Overloaded Fab Kills . | . . . . . Hacking | -11 -10 -10 -10 -9 --------- Run | Jun Mat Min Exi Min Machines Accessed 2 | . 1 . 1 . Terminals 1 | . 1 . . . Fabricators . | . . . . . Repair Stations . | . . . . . Recycling Units . | . . . . . Scanalyzers . | . . . . . Garrison Access . | . . . . . Total Hacks 5 | . 4 . 1 . Successful 4 | . 3 . 1 . Failed 1 | . 1 . . . Catastrophic . | . . . . . Database Lockouts . | . . . . . Manual 2 | . . . 2 . Terminals 4 | . 4 . . . Fabricators . | . . . . . Repair Stations . | . . . . . Recycling Units . | . . . . . Scanalyzers . | . . . . . Garrison Access . | . . . . . Terminal Hacks 4 | . 3 . 1 . Prototype ID Bank 1 | . 1 . . . Branch Access Points 1 | . 1 . . . Locate Traps 1 | . 1 . . . EX-Prototype ID Bank 1 | . . . 1 . Fabricator Hacks . | . . . . . Repair Station Hacks . | . . . . . Recycling Unit Hacks . | . . . . . Scanalyzer . | . . . . . Garrison Access Hacks . | . . . . . Unauthorized Hacks . | . . . . . Terminals . | . . . . . Fabricators . | . . . . . Repair Stations . | . . . . . Recycling Units . | . . . . . Scanalyzers . | . . . . . Garrison Access . | . . . . . Data Cores Recovered . | . . . . . Used . | . . . . . Hacking Detections 1 | . 1 . . . Full Trace Events . | . . . . . Feedback Events . | . . . . . Feedback Blocked . | . . . . . Robot Schematics Acquired . | . . . . . Robots Built . | . . . . . Authchips . | . . . . . Time . | . . . . . Total Robot Build Rating . | . . . . . Part Schematics Acquired . | . . . . . Parts Built . | . . . . . Authchips . | . . . . . Time . | . . . . . Total Part Build Rating . | . . . . . Parts Repaired . | . . . . . Time . | . . . . . Parts Recycled . | . . . . . Recycled Matter . | . . . . . Retrieved Matter . | . . . . . Retrieved Components . | . . . . . Parts Scanalyzed . | . . . . . Part Schematics Acquired . | . . . . . Parts Damaged . | . . . . . Bothacking | -11 -10 -10 -10 -9 ------------ Run | Jun Mat Min Exi Min Used RIF Installer . | . . . . . Robots Hacked . | . . . . . Non-combat . | . . . . . Combat . | . . . . . Robot Hacks Applied . | . . . . . Relay Couplers Released . | . . . . . Fabnet Peak Effective % . | . . . . . Robots Rewired . | . . . . . Allies Hacked . | . . . . . Hacks Repelled . | . . . . . Allies | -11 -10 -10 -10 -9 -------- Run | Jun Mat Min Exi Min Total Allies 2 | . . 2 . . Largest Group 2 | . . 2 1 . Highest-Rated Group 38 | . . 38 31 . Highest-Rated Ally 31 | . . 31 31 . Total Orders . | . . . . . Ally Attacks . | . . . . . Total Damage . | . . . . . Kills . | . . . . . Allies Corrupted . | . . . . . Allies Melted . | . . . . . Intel | -11 -10 -10 -10 -9 ------- Run | Jun Mat Min Exi Min Robot Analysis Total . | . . . . . Derelict Logs Recovered . | . . . . . Drone Launches . | . . . . . Drone Recoveries . | . . . . . Exploration | -11 -10 -10 -10 -9 ------------- Run | Jun Mat Min Exi Min Turns Passed 1203 | 80 310 191 273 349 Spaces Moved 774 | 57 222 159 226 110 Core 23 | 23 . . . . Treads . | . . . . . Legs 751 | 34 222 159 226 110 Wheels . | . . . . . Hover . | . . . . . Flight . | . . . . . Fastest Speed 50 | 50 120 120 120 120 Average Speed 119 | 95 120 120 120 127 Slowest Speed 190 | 120 120 120 120 190 Overloaded Moves . | . . . . . Propulsion Burnouts . | . . . . . Robots Hopped . | . . . . . Cave-ins Triggered . | . . . . . Exploration Rate (%) 36 | 5 44 50 63 22 Regions Visited 4 Branch Regions 3 Pre-discovered Areas . | . . . . . Known Exits Taken 1 | . 1 . . . Unknown Exits Taken 3 | 1 . 1 1 . Scrap Searched . | . . . . . Spaces Dug . | . . . . . Terrain Destroyed . | . . . . . Melee . | . . . . . Projectile . | . . . . . AOE . | . . . . . Terrain Rammed . | . . . . . Walls Destroyed . | . . . . . Machines Disabled . | . . . . . Actions | -11 -10 -10 -10 -9 --------- Run | Jun Mat Min Exi Min Total 961 | 74 245 159 228 255 Wait 97 | . 1 . . 96 Move 770 | 56 221 158 225 110 Hop . | . . . . . Pick Up 17 | 8 7 . 1 1 Fast Attach 3 | 2 . . . 1 Attach 6 | 4 1 . 1 . Detach . | . . . . . Swap 1 | . 1 . . . Drop 4 | . 1 . 1 2 Fire 59 | 4 11 . . 44 Melee . | . . . . . Ram . | . . . . . Kick 4 | . 2 1 . 1 Crush . | . . . . . Escape Stasis . | . . . . . Rewire . | . . . . . Trap . | . . . . . Miscellaneous . | . . . . . Route ------- -11/Junkyard -10/Materials (discovered 3 exits: [*Mat] / *Min x2) -10/Mines (discovered 3 exits: [*Mat x2] / *Exi) -10/Exiles -9/Mines History --------- Turn | Location | Event 4 | -11/Junkyard | Discovered new exit (range 14) 81 | -11/Junkyard | Entered Materials 102 | -10/Materials | Identified exit to Mines 255 | -10/Materials | Discovered new exit (range 10) 315 | -10/Materials | Build established: Mutant 391 | -10/Materials | Entered Mines 409 | -10/Mines | Met a Derelict bent on vengeance 414 | -10/Mines | Discovered new exit (range 16) 565 | -10/Mines | Discovered new exit (range 11) 577 | -10/Mines | Deemed a non-threat by the Exiles lab entrance 577 | -10/Mines | Discovered new exit (range 5) 582 | -10/Mines | Entered Exiles 582 | -10/Exiles | Accompanied by 1 ally 612 | -10/Exiles | Led the pair of lost Derelicts to a safe place 612 | -10/Exiles | Met 8R-AWN 632 | -10/Exiles | Met EX-HEX 664 | -10/Exiles | Met EX-BIN 681 | -10/Exiles | Aligned with FarCom system 682 | -10/Exiles | Given EX-Vault access code 710 | -10/Exiles | Opened EX-Vault 720 | -10/Exiles | Found AWS/Gauss 747 | -10/Exiles | Warned to stay clear of 0b10 Research branches 761 | -10/Exiles | Exiles lab attacked by MAIN.C 843 | -10/Exiles | Discovered new exit (range 10) 855 | -10/Exiles | Left Exiles lab with AWS/Gauss 855 | -10/Exiles | Entered Mines 985 | -9/Mines | Excavation squad dispatched 985 | -9/Mines | A large section of the Mines collapsed 1173 | -9/Mines | Core integrity fell below 50% 1177 | -9/Mines | Core integrity fell below 20% 1204 | -9/Mines | Destroyed by S-10 Pest with Light Assault Rifle Last Messages --------------- 01135_ U-05 Engineer lays Concrete. 01137_ T-07 Excavator is excavating. 01138_ Aluminum Leg destroyed. 01139_ U-05 Engineer lays Concrete. 01141_ T-07 Excavator is excavating. 01141_ U-05 Engineer lays Concrete. 01144_ G-34 Mercenary destroyed. 01146_ T-07 Excavator is excavating. 01147_ as-93220 sneak attacks. 01147_ T-07 Excavator knocked back. 01147_ U-05 Engineer lays Concrete. 01162_ Kicked T-07 Excavator. 01166_ U-05 Engineer destroyed. 01172_ Knocked back. 01173_ Acquired 16 matter. 01176_ Assault Rifle destroyed. 01176_ System corrupted by crushing effect (+1). 01177_ S-10 Pest destroyed. 01177_ Acquired 24 matter. 01191_ as-93220 destroyed. Map ----- +----------------------------------------------------+ | ?????????????????????????????????????????????????? | | ??????????????????##?????????????????????????????? | | ?????????????????## ????????????????????????????? | | ?????????????????# ????????????????????????????? | | ?????????????????# ????????????????????????????? | | ?????????????????# ????????????????????????????? | | ?????????????????? ????????????????????????????? | | ?????????????????? ????????????????????????????? | | ?????????????????### ????????????????????????????? | | ?????????????????##"###??????????????????????????? | | ?????????????????## #"#??????????????????????????? | | ?????????????????## ??????????????????????????? | | ??????????????????# " #??????????????????????????? | | ???????????????????# #??????????????????????????? | | ???????????????????# ####???????????????????????? | | ???????????????????# !%* #???????????????????????? | | ???????????????????#*!![ #???????????????????????? | | ???????????????????####% #???????????????????????? | | ??????????????????????# #???????????????????????? | | ??????????????????????#" #???????????????????????? | | ??????????????????????# #???????????????????????? | | ??????????????????????# #???????????????????????? | | ?????????????####?????# #####g *% ?????????? | | ????????????## ##????# ks #?????????? | | ?????######## #????#!s###### #????????????????? | | ????## #????#!*@##?????????????????????? | | ???## ##??## #?????????????????????? | | #### ###### ####=tt #?????????????????????? | | #????## ##?????????????????????? | | #?????# * ##??????????????????????? | | ##????## ==%##??????????????????????? | | ### #####?###### !##?????????????????????? | | #??## ######### ## ???????????? | | #????# ???????????? | | ????## ??????????? | | ???## ########### ???????????? | | #### #####?????????? ####???????????? | | ####?????????????? ###??????????????? | | """ ##????????????????? ##????????????????? | | """ ##?????????????????? ####?????????????????? | | """ #???????????????????####????????????????????? | | #???????????????????????????????????????????? | | ## ##???????????????????????????????????????????? | | ?####????????????????????????????????????????????? | | ?????????????????????????????????????????????????? | | ?????????????????????????????????????????????????? | | ?????????????????????????????????????????????????? | | ?????????????????????????????????????????????????? | | ?????????????????????????????????????????????????? | | ?????????????????????????????????????????????????? | +----------------------------------------------------+ Best States ------------- Heat Dissipation 25 Energy Generation 15 Energy Capacity 250 Matter Stores 250 Matter Capacity 300 Sight Range 16 Terrain Scan Density 10 Evasion (%) 55 Item Schematics ----------------- None Robot Schematics ------------------ None Fabricated ------------ Nothing Alien Tech Used ----------------- None Achievements -------------- None Challenges ------------ None Game ------ Seed DeuteriumThunderClaws Manual? 0 Play Time 00:13:04 Cumulative 18.5 hours Start 2023.04.02 @ 16:47:56 End 2023.04.02 @ 17:00:58 Sessions 1 Manual Loads 0 Difficulty Rogue Special Mode None Game No. 46 Rogue 46 Adventurer 0 Explorer 0 Win Type - Total 0 Types 0/0/0/0/0/0/0/0/0 Lore% 22 Gallery% 26 Achievement% 19 Wizard Run 0 Options --------- ASCII 0 Keyboard 0 Movement Mouse Keybinds 0 Fullscreen 1 Font 24/Smallcaps Map View 64x52 Tactical HUD 1 Map Filters NONE Filters NONE Steam 1 RUN: a83b04b1-2e9d-44ef-b45e-791655af9cb1